bitfinex-derivatives/quotes_BNBF0:USTF0_20250709
["timestamp","ask_amount","ask_price","bid_price","bid_amount"]
[1752043737374,1.6893895,663.68,663.34,3.4082112]
[1752043739276,1.6893895,663.68,663.35,1.6942112]
[1752043746280,1.6893895,663.67,663.35,1.6942112]
[1752043749682,1.6893895,663.68,663.34,3.4082112]
[1752043750879,1.6893895,663.68,663.35,1.6942112]
[1752043751783,1.6893895,663.68,663.34,3.4082112]
[1752043753780,1.6893895,663.68,663.35,1.6942112]
[1752043757185,1.684,663.67,663.35,1.6942112]
[1752043759691,3.3733895,663.67,663.35,1.6942112]
[1752043761392,1.684,663.67,663.34,1.714]
[1752043762693,1.684,663.67,663.34,3.4082112]
[1752043763394,1.684,663.67,663.36,1.6942112]
[1752043764491,1.684,663.67,663.34,3.4082112]
[1752043765490,1.684,663.67,663.34,1.714]
[1752043772003,1.684,663.67,663.31,1.6942112]
[1752043774405,1.684,663.67,663.18,2.2607739]
[1752043774406,1.684,663.67,663.33,1.6942112]
[1752043775205,1.684,663.67,663.34,1.867]
[1752043775706,1.684,663.67,663.34,3.5612112]
[1752043776402,1.684,663.67,663.36,1.6942112]
[1752043795228,1.684,663.67,663.34,1.867]
[1752043796827,1.684,663.67,663.34,3.5612112]
[1752043797628,1.684,663.67,663.34,1.867]
[1752043801330,1.6893895,663.79,663.34,1.867]
[1752043802431,1.6893895,663.8,663.34,1.867]
[1752043802627,1.6893895,663.86,663.37,1.6942112]
[1752043803330,1.6893895,663.87,663.37,1.6942112]
[1752043804030,2.14,663.86,663.37,1.6942112]
[1752043804331,2.14,663.86,663.36,1.6942112]
[1752043805128,3.8293895,663.86,663.38,1.6942112]
[1752043805328,2.14,663.86,663.37,1.6942112]
[1752043806329,2.14,663.86,663.36,1.6942112]
[1752043807528,3.8293895,663.86,663.38,1.6942112]
[1752043809329,2.14,663.86,663.38,1.6942112]
[1752043810331,3.8293895,663.86,663.38,1.6942112]
[1752043811331,2.14,663.86,663.38,1.6942112]
[1752043812335,2.14,663.86,663.39,1.681]
[1752043812634,3.8293895,663.86,663.39,3.3752112]
[1752043813234,2.14,663.86,663.39,1.681]
[1752043815436,1.6893895,663.85,663.41,1.6942112]
[1752043815934,1.6893895,663.85,663.4,1.6942112]
[1752043817037,3.8293895,663.86,663.41,1.6942112]
[1752043817237,3.8293895,663.86,663.4,1.6942112]
[1752043823046,3.8293895,663.86,663.41,1.6942112]
[1752043823842,2.14,663.86,663.39,1.681]
[1752043831456,3.8293895,663.86,663.4,1.6942112]
[1752043832356,3.8293895,663.86,663.39,3.3752112]
[1752043833058,2.14,663.86,663.39,3.3752112]
[1752043834359,3.8293895,663.86,663.4,1.6942112]
[1752043839760,1.6893895,663.85,663.41,1.6942112]
[1752043844769,1.975,663.84,663.42,2.186]
[1752043846467,3.6643895,663.84,663.42,2.186]
[1752043847265,3.6643895,663.84,663.42,3.8802112]
[1752043849572,1.975,663.84,663.42,2.186]
[1752043852275,3.6643895,663.84,663.42,2.186]
[1752043853178,1.975,663.84,663.42,2.186]
[1752043854273,3.6643895,663.84,663.42,2.186]
[1752043856374,3.6643895,663.84,663.42,3.8802112]
[1752043857278,1.6893895,663.83,663.42,3.8802112]
[1752043858377,1.6893895,663.83,663.42,2.186]
[1752043859375,1.6893895,663.83,663.42,3.8802112]
[1752043859575,1.6893895,663.82,663.44,1.6942112]
[1752043859777,1.6893895,663.82,663.43,1.6942112]
[1752043860378,1.6893895,663.82,663.44,1.6942112]
[1752043861681,1.6893895,663.81,663.44,1.6942112]
[1752043862383,1.6893895,663.8,663.45,1.6942112]
[1752043862582,1.6893895,663.8,663.46,1.6942112]
[1752043863086,1.6893895,663.79,663.47,1.6942112]
[1752043884006,1.6893895,663.79,663.48,1.632]
[1752043884508,1.6893895,663.81,663.48,1.632]
[1752043886716,1.6893895,663.82,663.48,1.632]
[1752043887015,1.6893895,663.81,663.48,1.632]
[1752043887815,3.6643895,663.84,663.48,1.632]
[1752043893324,1.975,663.84,663.48,1.632]
[1752043894416,3.6643895,663.84,663.48,1.632]
[1752043896121,3.6643895,663.84,663.4,1.6942112]
[1752043897720,1.6893895,663.82,663.42,1.6942112]
[1752043899216,1.6893895,663.82,663.43,1.6942112]
[1752043899816,1.6893895,663.82,663.44,2.179]
[1752043900722,1.6893895,663.81,663.44,3.8732112]
[1752043902718,1.6893895,663.82,663.44,2.179]
[1752043903123,1.6893895,663.8,663.45,1.6942112]
[1752043903924,1.6893895,663.81,663.44,3.8732112]
[1752043904619,1.576,663.8,663.44,3.8732112]
[1752043906420,1.576,663.8,663.44,2.179]
[1752043910729,1.576,663.8,663.44,3.8732112]
[1752043911731,1.576,663.8,663.44,2.179]
[1752043912733,1.576,663.8,663.44,3.8732112]
[1752043913729,1.576,663.8,663.45,1.6942112]
[1752043916331,3.2653895,663.8,663.46,1.6942112]
[1752043916733,3.2653895,663.8,663.47,1.97]
[1752043916930,1.576,663.8,663.47,1.97]
[1752043935647,0.26220318,664.05,663.47,1.97]
[1752043939150,1.681,664.04,663.47,1.97]
[1752043942249,3.9355556,664.04,663.47,1.97]
[1752043943149,2.2545556,663.97,663.48,1.6942112]
[1752043943853,2.2545556,663.98,663.48,1.6942112]
[1752043945053,2.2545556,663.98,663.47,3.6642112]
[1752043945253,2.2545556,663.98,663.48,1.6942112]
[1752043947454,2.2545556,663.96,663.49,1.6942112]
[1752043947655,2.2545556,663.98,663.47,3.6642112]
[1752043951055,2.2545556,663.98,663.48,1.6942112]
[1752043951755,2.2545556,663.98,663.47,3.6642112]
[1752043952359,2.2545556,663.99,663.47,3.6642112]
[1752043952955,2.2545556,663.98,663.47,3.6642112]
[1752043953659,2.2545556,663.98,663.48,1.6942112]
[1752043953860,2.2545556,663.98,663.47,3.6642112]
[1752043954363,2.2545556,663.98,663.48,1.6942112]
[1752043955558,2.2545556,663.98,663.47,3.6642112]
[1752043957161,2.2545556,664.01,663.47,1.97]
[1752043957557,2.2545556,663.99,663.47,1.97]
[1752043958357,2.2545556,663.99,663.47,3.6642112]
[1752043961061,1.6892902,663.86,663.47,1.97]
[1752043961660,1.6892902,663.86,663.47,3.6642112]
[1752043962861,1.6892902,663.85,663.47,1.97]
[1752043963363,1.6892902,663.85,663.47,3.6642112]
[1752043967170,1.6892902,663.84,663.48,1.6942112]
[1752043968271,1.6892902,663.84,663.49,1.6942112]
[1752043969374,1.6892902,663.83,663.49,1.6942112]
[1752043975978,1.6892902,663.83,663.5,1.623]
[1752043976275,1.6892902,663.82,663.5,1.623]
[1752043976477,1.6892902,663.82,663.5,3.3172112]
[1752043976782,1.6892902,663.83,663.5,1.623]
[1752043980888,1.6892902,663.83,663.5,3.3172112]
[1752043981085,1.6892902,663.82,663.5,3.3172112]
[1752043984186,1.6892902,663.83,663.5,1.623]
[1752043985096,1.6892902,663.82,663.5,3.3172112]
[1752043991390,1.6892902,663.83,663.5,1.623]
[1752043992094,1.6892902,663.84,663.5,1.623]
[1752043992589,0.26220318,664.05,663.5,1.623]
[1752043992590,1.6892902,663.88,663.5,1.623]
[1752043994696,1.526,663.87,663.5,1.623]
[1752043996097,1.526,663.87,663.42,1.6942112]
[1752043999297,1.526,663.87,663.43,2.411]
[1752044002305,1.6901501,663.85,663.45,1.6952016]
[1752044003005,1.6901501,663.86,663.45,1.6952016]
[1752044003407,1.6901501,663.86,663.44,1.6952016]
[1752044005707,1.6901501,663.86,663.45,1.6952016]
[1752044006909,1.690171,663.86,663.45,1.6952191]
[1752044007808,1.690171,663.85,663.46,1.6952191]
[1752044009004,1.690171,663.85,663.45,1.6952191]
[1752044009309,1.690171,663.86,663.45,1.6952191]
[1752044010709,1.690171,663.86,663.43,2.411]
[1752044010710,1.690171,663.86,663.44,1.6952191]
[1752044011506,1.690171,663.86,663.45,1.6952191]
[1752044012106,1.690171,663.85,663.45,1.6952191]
[1752044012712,1.526,663.87,663.43,2.411]
[1752044012912,1.6902194,663.85,663.45,1.6952489]
[1752044013212,1.6902194,663.85,663.46,1.6952489]
[1752044014813,1.6902327,663.85,663.46,1.6952622]
[1752044018816,1.6902327,663.84,663.47,1.6952622]
[1752044019113,1.6902327,663.84,663.48,1.6952622]
[1752044019627,1.6902327,663.83,663.48,1.6952622]
[1752044019927,1.6902327,663.84,663.48,1.6952622]
[1752044020526,1.6902327,663.83,663.48,1.6952622]
[1752044020726,1.526,663.87,663.5,1.6952622]
[1752044020727,1.6902327,663.82,663.5,1.6952622]
[1752044022129,1.526,663.87,663.39,2.2607739]
[1752044022328,1.6903384,663.82,663.51,2.158]
[1752044036740,1.76,663.81,663.51,2.158]
[1752044043043,1.76,663.81,663.58,1.6953477]
[1752044043442,1.76,663.81,663.51,2.158]
[1752044043443,1.76,663.81,663.57,1.6953477]
[1752044043739,1.76,663.81,663.58,1.6953477]
[1752044044043,1.76,663.81,663.6,1.6953477]
[1752044044442,1.76,663.81,663.58,1.6953477]
[1752044045239,1.76,663.81,663.57,1.6953477]
[1752044046543,1.76,663.81,663.53,1.6953477]
[1752044048247,1.76,663.81,663.52,1.6953477]
[1752044048741,1.76,663.81,663.53,1.6953477]
[1752044050743,1.76,663.81,663.51,2.158]
[1752044058749,1.95250998,664.15,663.51,2.158]
[1752044060356,0.26217158,664.15,663.51,2.158]
[1752044060555,1.6903384,664.14,663.51,2.158]
[1752044062055,1.767,664.13,663.51,2.158]
[1752044062952,3.4573384,664.13,663.51,2.158]
[1752044065253,1.767,664.13,663.51,2.158]
[1752044066957,1.6903384,664.12,663.52,1.6953477]
[1752044070257,3.4573384,664.13,663.51,3.8533477]
[1752044070761,3.4525972,664.13,663.51,3.8470763]
[1752044075065,1.6855972,664.12,663.51,3.8470763]
[1752044075267,1.6855972,664.12,663.52,1.6890763]
[1752044076765,1.6855972,664.12,663.53,1.6890763]
[1752044078169,1.6855972,664.12,663.52,1.6890763]
[1752044078369,1.6855972,664.12,663.4,2.2607739]
[1752044078370,1.6855972,664.12,663.53,1.6890763]
[1752044078672,1.6857357,664.12,663.52,1.6890297]
[1752044079869,1.6857357,664.12,663.53,1.726]
[1752044080171,1.6857357,664.12,663.53,3.4150297]
[1752044080371,1.6857357,664.1,663.56,1.6890297]
[1752044083673,1.767,664.13,663.53,1.726]
[1752044096984,1.6857357,664.12,663.55,1.6890297]
[1752044097385,1.6857357,664.11,663.56,1.6890297]
[1752044097685,1.6857357,664.1,663.57,1.6890297]
[1752044098381,1.6857357,664.1,663.58,1.6890297]
[1752044098786,1.6857357,664.1,663.57,1.6890297]
[1752044099387,1.6857357,664.09,663.58,1.6890297]
[1752044099584,1.6857357,664.08,663.6,1.6890297]
[1752044099885,1.6857357,664.07,663.62,1.6890297]
[1752044101289,1.6857357,664.06,663.63,1.6890297]
[1752044101592,1.6857357,664.05,663.64,1.6890297]
[1752044102391,1.6857357,664.04,663.66,1.6890297]
[1752044103292,1.6857357,664.03,663.66,1.6890297]
[1752044104492,1.6857357,664.08,663.59,1.6890297]
[1752044106292,1.6857357,664.08,663.6,1.6890297]
[1752044107192,1.6857357,664.07,663.6,1.6890297]
[1752044107888,1.6857357,664.08,663.59,1.6890297]
[1752044109392,1.6857357,664.07,663.6,1.6890297]
[1752044113497,1.6857357,664.07,663.61,2.064]
[1752044114197,1.6857357,664.03,663.65,1.6890297]
[1752044115494,1.565,664.02,663.65,1.6890297]
[1752044116393,1.565,664.02,663.61,2.064]
[1752044116394,1.565,664.02,663.63,1.6890297]
[1752044117795,1.565,664.02,663.65,1.6890297]
[1752044124306,1.565,664.02,663.62,1.6890297]
[1752044124502,1.565,664.02,663.63,1.6890297]
[1752044125904,1.6857357,663.98,663.61,2.064]
[1752044126110,1.6857357,663.99,663.61,2.064]
[1752044126310,1.6857357,663.98,663.61,2.064]
[1752044127310,1.6857357,663.99,663.61,2.064]
[1752044129214,1.6857357,664.0,663.61,2.064]
[1752044130012,1.565,664.02,663.61,2.064]
[1752044130013,1.6857357,664.01,663.61,2.064]
[1752044133010,1.6857357,664.0,663.61,2.064]
[1752044135214,1.6857357,664.01,663.61,2.064]
[1752044135812,1.565,664.02,663.61,2.064]
[1752044135813,1.6857357,664.0,663.61,2.064]
[1752044136214,1.6857357,664.01,663.61,2.064]
[1752044139919,1.6857357,664.0,663.61,2.064]
[1752044140514,1.565,664.02,663.61,2.064]
[1752044140720,1.6900171,664.0,663.61,2.064]
[1752044141617,1.6900171,663.99,663.61,2.064]
[1752044145121,1.6900171,663.98,663.61,2.064]
[1752044148426,1.6900171,664.0,663.61,2.064]
[1752044158339,1.6900171,663.99,663.61,2.064]
[1752044158743,1.6900171,663.98,663.61,2.064]
[1752044162340,1.6900171,663.99,663.61,2.064]
[1752044162540,1.565,664.02,663.61,3.7568566]
[1752044164241,1.565,664.02,663.62,1.6928566]
[1752044165648,1.6900171,664.03,663.62,1.6928566]
[1752044167244,1.6900171,664.02,663.62,1.6928566]
[1752044167657,1.6900171,664.03,663.62,1.6928566]
[1752044167847,1.6900171,664.02,663.62,1.6928566]
[1752044168448,2.293,664.01,663.62,1.6928566]
[1752044170253,2.293,664.01,663.61,1.6928566]
[1752044170448,2.293,664.01,663.56,1.6928566]
[1752044172450,2.293,664.01,663.57,3.7358566]
[1752044179456,2.293,664.01,663.57,2.043]
[1752044180056,2.293,664.01,663.57,3.7358566]
[1752044180463,2.293,664.01,663.6,1.6928566]
[1752044183161,2.293,664.01,663.6,1.6932295]
[1752044183861,2.293,664.01,663.59,1.6932295]
[1752044186858,2.293,664.01,663.58,1.6932295]
[1752044189363,2.293,664.01,663.59,1.6932295]
[1752044191863,2.293,664.01,663.6,1.72]
[1752044192661,2.293,664.01,663.6,3.4132295]
[1752044194567,2.293,664.01,663.61,1.6932295]
[1752044196665,3.9843737,664.01,663.62,1.6932295]
[1752044197769,3.9843737,664.01,663.63,1.6932295]
[1752044198666,2.293,664.01,663.6,1.72]
[1752044198970,1.6913737,664.0,663.6,1.72]
[1752044199366,3.9843737,664.01,663.6,1.72]
[1752044201969,4.24654429,664.01,663.6,1.72]
[1752044202675,2.55517059,664.01,663.6,1.72]
[1752044204469,4.24654429,664.01,663.6,1.72]
[1752044208577,1.6913737,663.97,663.6,1.72]
[1752044214774,1.6913737,663.96,663.6,1.72]
[1752044215879,2.55517059,664.01,663.6,1.72]
[1752044216575,0.26217059,664.01,663.6,1.72]
[1752044220082,2.05,664.0,663.6,1.72]
[1752044225786,1.6913737,663.98,663.6,1.72]
[1752044228087,1.6913737,663.99,663.6,1.72]
[1752044231393,1.6913737,663.98,663.6,1.72]
[1752044231593,3.7413737,664.0,663.6,1.72]
[1752044232190,2.05,664.0,663.6,1.72]
[1752044232394,1.6913737,663.99,663.6,1.72]
[1752044235291,1.6913737,663.98,663.6,1.72]
[1752044241604,1.6913737,663.97,663.6,1.72]
[1752044242102,1.6913737,663.94,663.6,1.72]
[1752044242402,1.6913737,663.93,663.6,1.72]
[1752044247701,1.6913737,663.92,663.6,1.72]
[1752044247899,1.6913737,663.93,663.6,1.72]
[1752044248104,1.6913737,663.93,663.46,1.6932295]
[1752044248305,1.6913737,663.92,663.46,1.6932295]
[1752044249304,1.6913737,663.92,663.38,0.26214294]
[1752044249305,1.6913737,663.92,663.47,1.6932295]
[1752044250604,1.6913737,663.92,663.48,2.173]
[1752044251305,2.05,664.0,663.48,2.173]
[1752044251306,1.6913737,663.91,663.48,2.173]
[1752044251500,1.6913737,663.94,663.48,2.173]
[1752044253003,2.05,664.0,663.48,2.173]
[1752044257110,1.6904523,663.92,663.48,2.173]
[1752044257305,1.6904523,663.91,663.48,2.173]
[1752044258507,1.6904523,663.89,663.48,3.8665761]
[1752044260207,2.05,664.0,663.49,1.6935761]
[1752044260208,1.6904523,663.88,663.49,1.6935761]
[1752044261312,2.05,664.0,663.48,2.173]
[1752044261313,4.3039364,664.0,663.51,1.6935761]
[1752044261708,2.2539364,663.99,663.52,1.6935761]
[1752044261911,4.3039364,664.0,663.52,1.6935761]
[1752044262813,2.05,664.0,663.48,2.173]
[1752044264411,2.05,664.0,663.43,1.6935761]
[1752044267114,2.05,664.0,663.44,2.35]
[1752044272516,2.05,664.0,663.5,1.6935761]
[1752044272916,2.05,664.0,663.51,1.6935761]
[1752044273217,2.51610699,664.01,663.51,1.6935761]
[1752044275219,2.2539364,664.0,663.51,1.6935761]
[1752044275420,2.2539364,664.0,663.52,1.6935761]
[1752044276121,1.666,663.99,663.52,1.6935761]
[1752044280623,3.9199364,663.99,663.52,1.6935761]
[1752044282224,2.2539364,663.98,663.53,1.6935761]
[1752044282520,2.2539364,663.97,663.53,1.6935761]
[1752044282725,2.2539364,663.97,663.54,1.6935761]
[1752044283320,2.2539364,663.98,663.53,1.6935761]
[1752044287223,2.2539364,663.97,663.54,1.6935761]
[1752044291331,1.666,663.99,663.54,1.6935761]
[1752044291332,2.2539364,663.96,663.54,1.6935761]
[1752044291829,2.2539364,663.96,663.44,4.6081015]
[1752044292028,2.2539364,663.96,663.54,1.6953021]
[1752044293031,2.2539364,663.97,663.54,1.6953021]
[1752044293227,2.2539364,663.96,663.54,1.6953021]
[1752044293832,1.666,663.99,663.52,1.6953021]
[1752044296233,1.666,663.99,663.5,1.6953021]
[1752044297646,1.666,663.99,663.51,1.6953021]
[1752044298146,2.51610699,664.01,663.51,1.6953021]
[1752044298646,2.51610699,664.01,663.5,1.6953021]
[1752044301949,1.687,664.0,663.5,1.6953021]
[1752044302543,1.687,664.0,663.51,1.6953021]
[1752044303149,3.9409364,664.0,663.51,1.6953021]
[1752044303448,2.2539364,663.98,663.53,1.6953021]
[1752044303948,1.687,664.0,663.45,1.6953021]
[1752044308747,1.687,664.0,663.45,1.6953089]
[1752044312850,1.687,664.0,663.44,4.0453089]
[1752044313750,1.687,664.0,663.48,1.6953089]
[1752044314554,1.687,664.0,663.48,1.6953096]
[1752044315154,1.687,664.0,663.47,1.6953096]
[1752044315454,1.687,664.0,663.48,1.6953096]
[1752044317656,1.687,664.0,663.49,1.6953096]
[1752044319656,1.687,664.0,663.5,2.333]
[1752044321462,1.6925584,663.89,663.5,2.333]
[1752044322960,1.6925584,663.87,663.52,1.6953096]
[1752044323858,1.6925584,663.88,663.5,4.0283096]
[1752044327465,1.6925584,663.88,663.51,1.6953096]
[1752044330561,1.6925584,663.87,663.52,1.6953096]
[1752044330765,1.6925584,663.88,663.51,1.6953096]
[1752044333663,1.6925584,663.89,663.52,1.6953096]
[1752044333967,1.6925584,663.87,663.54,1.6953096]
[1752044334165,1.6925584,663.87,663.53,1.6953096]
[1752044337870,1.6925584,663.88,663.52,1.6953096]
[1752044339770,1.6925584,663.87,663.52,1.6953096]
[1752044340774,1.6925584,663.86,663.54,1.6953096]
[1752044341468,1.6925584,663.87,663.54,1.6953096]
[1752044341869,1.6925584,663.88,663.53,1.6953096]
[1752044345175,1.6925584,663.88,663.52,1.6953096]
[1752044346573,1.6925584,663.88,663.5,2.333]
[1752044346574,1.6925584,663.88,663.53,1.6953096]
[1752044347479,1.6925584,663.88,663.52,1.6953096]
[1752044347682,1.6925584,663.88,663.53,1.6953096]
[1752044351779,1.6925584,663.87,663.55,1.6953096]
[1752044352279,1.6925584,663.87,663.54,1.6953096]
[1752044352477,1.687,664.0,663.51,1.6953096]
[1752044352478,1.6925584,663.89,663.51,1.6953096]
[1752044357283,1.6925584,663.89,663.52,1.6953096]
[1752044360188,1.6925584,663.9,663.5,4.0283096]
[1752044362488,1.6925584,663.89,663.51,1.6953096]
[1752044362990,1.6925584,663.91,663.5,2.333]
[1752044365192,1.48,663.9,663.5,2.333]
[1752044374801,1.48,663.9,663.48,1.6950012]
[1752044375200,1.48,663.9,663.49,1.6950012]
[1752044376704,1.48,663.9,663.48,1.6950012]
[1752044377908,1.48,663.9,663.49,1.64]
[1752044378108,1.48,663.9,663.49,3.3350012]
[1752044378404,3.1722925,663.9,663.49,3.3350012]
[1752044379505,3.1722925,663.9,663.5,1.6950012]
[1752044381109,1.6922925,663.89,663.51,1.6950012]
[1752044382309,1.6922925,663.88,663.52,1.6950012]
[1752044383808,1.6922925,663.87,663.53,1.6950012]
[1752044385713,1.6922925,663.88,663.53,1.6950012]
[1752044386714,1.6922925,663.87,663.54,1.6950012]
[1752044391821,1.6922925,663.87,663.53,1.6950012]
[1752044392417,1.48,663.9,663.49,1.64]
[1752044392616,1.6934838,663.87,663.53,1.6951594]
[1752044393321,1.6934838,663.88,663.53,1.6951594]
[1752044394118,1.6934838,663.88,663.52,1.6951594]
[1752044394721,1.6934838,663.88,663.51,1.6951594]
[1752044395719,1.6934838,663.88,663.52,1.6951594]
[1752044400321,1.6934838,663.88,663.53,1.6951594]
[1752044401222,1.48,663.9,663.53,1.6951594]
[1752044401223,1.6934838,663.87,663.53,1.6951594]
[1752044402029,1.6934838,663.89,663.55,1.6951594]
[1752044403028,1.6934838,663.88,663.55,1.6951594]
[1752044404130,1.6934838,663.88,663.56,1.6951594]
[1752044404828,1.822,663.87,663.56,1.6951594]
[1752044406827,1.822,663.87,663.53,1.6951594]
[1752044407527,1.822,663.87,663.52,1.6951594]
[1752044409833,1.822,663.87,663.51,1.6951594]
[1752044411128,1.822,663.87,663.5,1.6951594]
[1752044416537,1.822,663.87,663.49,1.64]
[1752044416538,1.822,663.87,663.49,3.3351594]
[1752044416738,1.822,663.87,663.51,1.6951594]
[1752044417534,1.822,663.87,663.52,1.6951594]
[1752044420236,1.822,663.87,663.53,1.6951594]
[1752044420542,1.822,663.87,663.51,1.6951594]
[1752044420839,1.822,663.87,663.5,1.6951594]
[1752044421038,1.822,663.87,663.38,0.26214294]
[1752044421039,1.822,663.87,663.51,1.6951594]
[1752044421343,1.822,663.87,663.5,1.6951594]
[1752044424741,1.822,663.87,663.51,1.427]
[1752044426545,1.822,663.87,663.51,3.1221594]
[1752044427647,1.822,663.87,663.52,1.6951594]
[1752044427945,0.26217059,664.01,663.51,1.427]
[1752044427946,1.6934838,663.88,663.56,1.6951594]
[1752044428146,1.6934838,663.88,663.55,1.6951594]
[1752044428441,1.6934838,663.89,663.55,1.6951594]
[1752044430246,2.244,663.88,663.55,1.6951594]
[1752044430944,2.244,663.88,663.54,1.6951594]
[1752044431744,2.244,663.88,663.55,1.6951594]
[1752044431948,2.244,663.88,663.54,1.6951594]
[1752044432544,2.244,663.88,663.52,1.6951594]
[1752044432949,2.244,663.88,663.51,1.427]
[1752044432950,2.244,663.88,663.51,3.1221594]
[1752044435258,2.244,663.88,663.52,1.6951594]
[1752044438161,2.244,663.88,663.51,1.427]
[1752044448069,2.244,663.88,663.55,1.6951594]
[1752044448269,1.6934838,663.91,663.55,1.6951594]
[1752044449768,1.6934838,663.91,663.56,1.6951594]
[1752044450870,1.514,663.9,663.56,1.6951594]
[1752044451366,3.2074838,663.9,663.56,1.6951594]
[1752044451870,3.2074838,663.9,663.57,1.6951594]
[1752044457571,3.2074838,663.9,663.56,1.6951594]
[1752044462179,1.514,663.9,663.55,1.6951594]
[1752044464083,1.514,663.9,663.59,1.6951594]
[1752044464382,1.514,663.9,663.58,1.6951594]
[1752044465984,1.6934838,663.96,663.58,1.6951594]
[1752044466285,1.6934838,663.97,663.57,1.6951594]
[1752044466881,1.6934838,663.96,663.58,1.6951594]
[1752044467385,1.6934838,663.97,663.58,1.6951594]
[1752044467984,1.6934838,663.97,663.57,1.6951594]
[1752044468180,1.6934838,663.96,663.57,1.6951594]
[1752044468685,1.6934838,663.96,663.56,1.6951594]
[1752044468885,1.6934838,663.97,663.57,1.6951594]
[1752044469986,1.442,663.96,663.57,1.6951594]
[1752044472087,3.1354838,663.96,663.58,1.6951594]
[1752044472589,3.1354838,663.96,663.59,1.6951594]
[1752044473389,3.1354838,663.96,663.58,1.6951594]
[1752044473691,3.1354838,663.96,663.59,1.6951594]
[1752044478395,3.1354838,663.96,663.58,1.6951594]
[1752044478593,3.1354838,663.96,663.59,1.6951594]
[1752044480199,3.1354838,663.96,663.58,1.6951594]
[1752044480901,1.442,663.96,663.56,1.6951594]
[1752044482299,1.442,663.96,663.57,1.6951594]
[1752044483297,1.442,663.96,663.56,1.6951594]
[1752044483497,1.442,663.96,663.58,2.056]
[1752044497008,1.6934838,663.99,663.58,2.056]
[1752044497711,1.6934838,663.98,663.58,3.7511594]
[1752044499305,2.245,663.97,663.58,3.7511594]
[1752044500008,2.245,663.97,663.59,1.6951594]
[1752044502109,2.245,663.97,663.6,1.6951594]
[1752044503310,3.9384838,663.97,663.6,1.6951594]
[1752044504210,2.245,663.97,663.59,1.6951594]
[1752044505914,2.245,663.97,663.58,3.7511594]
[1752044506809,2.245,663.97,663.59,1.6951594]
[1752044511522,2.245,663.97,663.6,1.933]
[1752044513322,3.9384838,663.97,663.6,1.933]
[1752044514224,3.9384838,663.97,663.6,3.6281594]
[1752044515324,3.9384838,663.97,663.61,1.6951594]
[1752044516327,1.6934838,663.96,663.61,1.6951594]
[1752044522330,1.6934838,663.95,663.62,1.6951594]
[1752044525730,1.6934838,663.94,663.62,1.6951594]
[1752044531131,1.6934838,663.95,663.61,1.6951594]
[1752044531434,1.6934838,663.95,663.62,1.6951594]
[1752044531930,1.6934838,663.95,663.6,1.933]
[1752044531931,1.6934838,663.96,663.61,1.6951594]
[1752044534432,2.298,663.95,663.61,1.6951594]
[1752044534637,2.298,663.95,663.6,1.933]
[1752044534638,2.298,663.95,663.6,3.6281594]
[1752044538741,1.6934838,663.93,663.6,1.933]
[1752044538940,1.6934838,663.92,663.6,1.933]
[1752044539139,1.6934838,663.93,663.6,1.933]
[1752044539437,1.6934838,663.92,663.6,1.933]
[1752044540143,1.6934838,663.93,663.6,1.933]
[1752044541141,1.6934838,663.94,663.6,1.933]
[1752044544241,3.9914838,663.95,663.6,1.933]
[1752044544547,1.6934838,663.94,663.6,1.933]
[1752044545348,3.9914838,663.95,663.6,1.933]
[1752044545542,3.9914838,663.95,663.46,1.6951594]
[1752044546147,3.9914838,663.95,663.45,1.6951594]
[1752044546443,3.9914838,663.95,663.46,1.6951594]
[1752044547049,3.9914838,663.95,663.45,1.6951594]
[1752044548549,1.6934838,663.94,663.47,1.6951594]
[1752044549043,1.6934838,663.94,663.48,1.475]
[1752044551054,1.6934838,663.91,663.51,1.6951594]
[1752044551253,1.6934838,663.91,663.52,1.6951594]
[1752044551449,1.6934838,663.92,663.52,1.6951594]
[1752044551654,1.6934838,663.91,663.52,1.6951594]
[1752044552155,1.6934838,663.92,663.51,1.6951594]
[1752044557064,1.6934838,663.93,663.51,1.6951594]
[1752044560461,1.6934838,663.93,663.5,1.6951594]
[1752044561858,1.6934838,663.93,663.49,1.6951594]
[1752044563662,1.6934838,663.93,663.5,1.6951594]